Cogmind - Beta 15 @@@ ROGUE MODE // 2025.05.25 @ 15:54:17 Player: Slind Result: Smashed by cave-in Performance ------------- Evolutions (0) 0 Regions Visited (2) 400 Robots Destroyed (16) 80 Value Destroyed (186) 186 Prototype IDs (0) 0 Alien Tech Used (0) 0 Bonus (0) 0 TOTAL SCORE: 666 Bonus ------- None Cogmind --------- Core Integrity 0/250 Matter 277/300 Energy 265/265 System Corruption 0% Temperature Cool (0) Movement Core (350) Ox6 Location -10/Mines Parts ------- > --- POWER (1) -------- Reinforced Ion Engine > --- PROPULSION (2) --- (None) > --- UTILITY (2) ------ Medium Storage Unit Hacking Suite > --- WEAPON (2) ------- (None) > --- INVENTORY (10) --- Light Ion Engine Light Ion Engine Reinforced Ion Engine Small Storage Unit Structural Scanner Medium Laser Rocket Launcher Rocket Launcher Peak State ------------ > --- POWER ------------ Reinforced Ion Engine > --- PROPULSION ------- Light Treads Light Treads > --- UTILITY ---------- Medium Storage Unit Hacking Suite > --- WEAPON ----------- Assault Rifle Rocket Launcher > --- INVENTORY -------- Light Ion Engine Light Ion Engine Reinforced Ion Engine Small Storage Unit Medium Laser Rocket Launcher Rocket Launcher [Rating: 12] Favorites ----------- Power Reinforced Ion Engine Engine Reinforced Ion Engine Propulsion Light Treads Treads Light Treads Utility Hacking Suite Storage Medium Storage Unit Hackware Hacking Suite Weapon Assault Rifle Energy Gun Medium Laser Ballistic Gun Assault Rifle Launcher Rocket Launcher Build | -11 -10 -10 ------- Run | Yrd Mat Min Slots Evolved . | . . . Power . | . . . Propulsion . | . . . Utility . | . . . Weapon . | . . . Parts Attached 11 | 6 5 . Power 3 | 1 2 . Engine 3 | 1 2 . Core . | . . . Reactor . | . . . Propulsion 2 | 2 . . Treads 2 | 2 . . Leg . | . . . Wheel . | . . . Hover . | . . . Flight . | . . . Utility 3 | 1 2 . Device . | . . . Storage 2 | 1 1 . Processor . | . . . Hackware 1 | . 1 . Protection . | . . . Artifact . | . . . Weapon 3 | 2 1 . Energy Gun 1 | 1 . . Energy Cannon . | . . . Ballistic Gun 1 | 1 . . Ballistic Cannon . | . . . Launcher 1 | . 1 . Special Weapon . | . . . Impact Weapon . | . . . Slashing Weapon . | . . . Piercing Weapon . | . . . Special Melee Weapon . | . . . Unidentified Prototypes . | . . . Parts Lost 4 | . . 4 Power . | . . . Propulsion 2 | . . 2 Utility . | . . . Weapon 2 | . . 2 Highest Loss Streak 4 | . . 4 To Critical Strikes . | . . . Average Backups 4 | 1 3 8 Power 2 | . 2 3 Propulsion . | . . . Utility . | . . 2 Weapon 1 | . . 3 Tool/Special . | . . . Unused Backups 6 | . . 6 Power 2 | . . 2 Propulsion . | . . . Utility 1 | . . 1 Weapon 3 | . . 3 Tool/Special . | . . . Average Slot Usage (%) 97 | . 98 94 Engine 14 | . 14 14 Treads 27 | . 28 25 Storage 14 | . 14 14 Hackware 12 | . 12 14 Energy Gun 7 | . 9 . Ballistic Gun 13 | . 14 12 Launcher 6 | . 4 13 Peak Build Rating 12 | 6 12 12 Average Rating 9 | 3 9 11 On Entrance 6 | . 6 12 Naked Turns . | . . . Heaviest Build 26 | 12 26 26 Greatest Support 40 | 40 40 40 Greatest Overweight (x) 6 | 1 . 6 Average Overweight (x) . | . . . Largest Inventory Capacity 10 | 8 10 10 Average Capacity 9 | 6 9 10 Most Carried 9 | 5 8 9 Average Carried 4 | 1 3 8 Final Capacity 10 | 8 10 10 Final Carried 8 | 1 8 8 Class Distribution -------------------- 100% | Mutant Dominant Class ---------------- Mutant | -10/Materials Mutant | -10/Mines Resources | -11 -10 -10 ----------- Run | Yrd Mat Min Matter Collected 472 | 215 235 22 Remotely . | . . . Salvage Created 382 | . 361 21 Parts 26 | . 20 6 Haulers Intercepted . | . . . Recyclers Shooed . | . . . Parts Field Recycled . | . . . Retrieved Matter . | . . . Parts Self-Destructed . | . . . Prevented . | . . . Kills | -11 -10 -10 ------- Run | Yrd Mat Min Combat Hostiles Destroyed 8 | . 5 3 Guns 3 | . 3 . AOE 5 | . 2 3 Classes Destroyed 7 | . 6 1 Worker 1 | . . 1 Builder 1 | . 1 . Recycler 2 | . 2 . Operator 1 | . 1 . Watcher 3 | . 3 . Swarmer 7 | . 4 3 Grunt 1 | . 1 . Best Kill Streak 5 | . 5 3 Combat Bots Only 3 | . 2 3 Max Kills in Single Turn 2 | . 2 2 Gunslinging . | . . . Exploded 2 | . 2 2 Melee . | . . . Uniques/NPCs Destroyed . | . . . Combat | -11 -10 -10 -------- Run | Yrd Mat Min Hostile Shots Fired 76 | . 58 18 Missed 19 | . 15 4 Hits 57 | . 43 14 Projectile 57 | . 43 14 AOE 13 | . . 13 Damage Taken 975 | . 394 581 Core 256 | . 62 194 Absorbed by Shields . | . . . Core Remaining (%) 100 | 100 . . Volleys Fired 41 | . 36 5 Largest 2 | . 2 1 Hottest 70 | . 70 33 Shots Fired 61 | . 56 5 Gun 52 | . 52 . Cannon . | . . . Launcher 9 | . 4 5 Special . | . . . Kinetic 32 | . 32 . Thermal 20 | . 20 . Explosive 9 | . 4 5 Electromagnetic . | . . . Robot Hit Streak 6 | . 6 4 Robot Miss Streak 9 | . 9 1 Penetration Max . | . . . Secondary Targets . | . . . Shots Hit Robots 27 | . 24 3 Core Hits 24 | . 16 8 Critical Kills . | . . . Critical Parts Destroyed . | . . . Critical Strikes 2 | . 2 . Burn 2 | . 2 . Melee Attacks . | . . . Impact . | . . . Slashing . | . . . Piercing . | . . . Sneak Attacks . | . . . Combat Hostiles . | . . . Follow-up Attacks . | . . . Damage Inflicted 787 | . 577 210 Guns 309 | . 309 . Cannons . | . . . Explosions 478 | . 268 210 Melee . | . . . Ramming . | . . . Kinetic 197 | . 197 . Thermal 112 | . 112 . Explosive 478 | . 268 210 Electromagnetic . | . . . Impact . | . . . Slashing . | . . . Piercing . | . . . Highest Corruption . | . . . Average Corruption . | . . . Corruption Purged . | . . . Corruption Blocked . | . . . Overload Shots . | . . . Overflow Damage 69 | . 69 . Projectiles . | . . . Explosions 69 | . 69 . Melee . | . . . Knockbacks . | . . . Impact . | . . . Kinetic . | . . . Secondary . | . . . Self-Inflicted Damage . | . . . Shots . | . . . Rammed . | . . . Targets Rammed . | . . . Kicked . | . . . Crushed . | . . . Highest Temperature 84 | . 84 . Average Temperature 33 | . 33 . Received Heat Transfer 36 | . 36 . Siege Activations . | . . . Martial Activations . | . . . Shielding Activations . | . . . Robots Disrupted . | . . . Combat Hostiles . | . . . Robots Corrupted . | . . . Combat Hostiles . | . . . Parts Fried . | . . . Impact Corruptions . | . . . Robots Melted . | . . . Combat Hostiles . | . . . Parts Melted 1 | . 1 . Heat Transferred 481 | . 481 . Parts Sabotaged . | . . . Parts Stolen . | . . . Parts Stripped . | . . . Power Chain Reactions . | . . . Alert | -11 -10 -10 ------- Run | Yrd Mat Min Maximum Alert Level . | . . . Low Security (%) 100 | 100 100 100 Level 1 . | . . . Level 2 . | . . . Level 3 . | . . . Level 4 . | . . . Level 5 . | . . . High Security . | . . . Max Security . | . . . Peak Influence 113 | . 72 113 Initial 24 | . . 24 Average 33 | . 25 69 Influence Increases 315 | . 216 99 Destroy 0b10 Robot/C 160 | . 100 60 Destroy 0b10 Robot/NC 40 | . 35 5 Destroy Leader 36 | . 26 10 Successful Hack 7 | . 7 . Destroy Structure 42 | . 18 24 Lose Combat Pursuer 30 | . 30 . Influence Decreases 302 | . 153 149 Entered New Map 39 | . . 39 Time Decay 223 | . 153 70 Lost Part 40 | . . 40 Squads Dispatched 2 | . 2 . Investigation . | . . . Extermination . | . . . Reinforcement 2 | . 2 . Assault . | . . . Garrison . | . . . Intercept . | . . . Searches Triggered . | . . . Construction Impeded . | . . . Haulers Reinforced . | . . . Active Scanning Responses . | . . . Cargo Convoy Interrupts . | . . . Stealth | -11 -10 -10 --------- Run | Yrd Mat Min Distress Signals . | . . . Communications Jammed . | . . . Distress Signals . | . . . Times Spotted 18 | . 13 5 Peak Tracking Total 4 | . 4 3 Tactical Retreats 2 | . 2 . Traps | -11 -10 -10 ------- Run | Yrd Mat Min Traps Triggered 1 | . 1 . Indirectly . | . . . Trap Hack Attempts . | . . . Triggered . | . . . Disarmed 4 | . 4 . Reprogrammed . | . . . Reused . | . . . Traps Extracted . | . . . Installed . | . . . Triggered . | . . . Machines | -11 -10 -10 ---------- Run | Yrd Mat Min Machines Disabled . | . . . Max in Single Turn . | . . . Machines Repaired . | . . . Machines Dismantled . | . . . Machines Sabotaged . | . . . Overloaded Fab Kills . | . . . Hacking | -11 -10 -10 --------- Run | Yrd Mat Min Machines Accessed 1 | . 1 . Terminals 1 | . 1 . Fabricators . | . . . Repair Stations . | . . . Recycling Units . | . . . Scanalyzers . | . . . Garrison Access . | . . . Total Hacks 8 | . 8 . Successful 6 | . 6 . Failed 2 | . 2 . Catastrophic . | . . . Database Lockouts . | . . . Manual 3 | . 3 . Terminals 8 | . 8 . Fabricators . | . . . Repair Stations . | . . . Recycling Units . | . . . Scanalyzers . | . . . Garrison Access . | . . . Terminal Hacks 6 | . 6 . Record 3 | . 3 . Locate Traps 1 | . 1 . Disarm Traps 1 | . 1 . Zone Layout 1 | . 1 . Fabricator Hacks . | . . . Repair Station Hacks . | . . . Recycling Unit Hacks . | . . . Scanalyzer . | . . . Garrison Access Hacks . | . . . Unauthorized Hacks . | . . . Terminals . | . . . Fabricators . | . . . Repair Stations . | . . . Recycling Units . | . . . Scanalyzers . | . . . Garrison Access . | . . . Data Cores Recovered . | . . . Used . | . . . Hacking Detections 1 | . 1 . Full Trace Events 1 | . 1 . Feedback Events . | . . . Feedback Blocked . | . . . Robot Schematics Acquired . | . . . Robots Built . | . . . Authchips . | . . . Time . | . . . Total Robot Build Rating . | . . . Part Schematics Acquired . | . . . Parts Built . | . . . Authchips . | . . . Time . | . . . Total Part Build Rating . | . . . Parts Repaired . | . . . Time . | . . . Parts Recycled . | . . . Recycled Matter . | . . . Retrieved Matter . | . . . Retrieved Components . | . . . Parts Scanalyzed . | . . . Part Schematics Acquired . | . . . Parts Damaged . | . . . Bothacking | -11 -10 -10 ------------ Run | Yrd Mat Min Used RIF Installer . | . . . Robots Hacked . | . . . Non-combat . | . . . Combat . | . . . Robot Hacks Applied . | . . . Relay Couplers Released . | . . . Fabnet Peak Effective % . | . . . Robots Rewired . | . . . Allies Hacked . | . . . Hacks Repelled . | . . . Allies | -11 -10 -10 -------- Run | Yrd Mat Min Total Allies . | . . . Largest Group . | . . . Highest-Rated Group . | . . . Highest-Rated Ally . | . . . Total Orders . | . . . Ally Attacks . | . . . Total Damage . | . . . Kills . | . . . Allies Corrupted . | . . . Allies Melted . | . . . Intel | -11 -10 -10 ------- Run | Yrd Mat Min Active Infowar (turns) . | . . . Robot Analysis Total . | . . . Derelict Logs Recovered . | . . . Drone Launches . | . . . Drone Recoveries . | . . . Exploration | -11 -10 -10 ------------- Run | Yrd Mat Min Turns Passed 662 | 46 468 148 Spaces Moved 336 | 33 219 84 Core 21 | 19 . 2 Treads 315 | 14 219 82 Legs . | . . . Wheels . | . . . Hover . | . . . Flight . | . . . Fastest Speed 50 | 50 160 160 Average Speed 155 | 98 160 165 Slowest Speed 350 | 160 160 350 Overloaded Moves . | . . . Propulsion Burnouts . | . . . Robots Hopped . | . . . Potential Cave-ins . | . . . Cave-ins Triggered 1 | . . 1 Exploration Rate (%) 24 | 3 46 24 Regions Visited 2 Branch Regions 1 Pre-discovered Areas . | . . . Known Exits Taken . | . . . Unknown Exits Taken 2 | 1 1 . Scrap Searched 1 | . . 1 Spaces Dug . | . . . Terrain Destroyed 93 | . 36 57 Melee . | . . . Projectile . | . . . AOE 93 | . 36 57 Terrain Rammed . | . . . Walls Destroyed . | . . . Machines Disabled . | . . . Actions | -11 -10 -10 --------- Run | Yrd Mat Min Total 416 | 46 279 91 Wait 13 | 3 10 . Move 334 | 32 218 84 Hop . | . . . Pick Up 15 | 5 9 1 Fast Attach 2 | 2 . . Attach 5 | 4 1 . Detach . | . . . Swap 4 | . 4 . Drop 2 | . 1 1 Fire 41 | . 36 5 Melee . | . . . Ram . | . . . Kick . | . . . Crush . | . . . Escape Stasis . | . . . Rewire . | . . . Trap . | . . . Miscellaneous . | . . . Route ------- -11/Scrapyard -10/Materials (discovered 2 exits: [*Mat] / [*Min]) -10/Mines (discovered 1 exit: [*Mat]) History --------- Turn | Location | Event 28 | -11/Scrapyard | Discovered new exit (range 12) 47 | -11/Scrapyard | Entered Materials 313 | -10/Materials | Build established: Mutant 334 | -10/Materials | Discovered new exit (range 7) 421 | -10/Materials | Discovered new exit (range 15) 515 | -10/Materials | Entered Mines 575 | -10/Mines | Discovered new exit (range 7) 631 | -10/Mines | Assembled infested the area 661 | -10/Mines | Core integrity fell below 50% 663 | -10/Mines | Core integrity fell below 20% 664 | -10/Mines | Crushed by falling debris 664 | -10/Mines | Smashed by cave-in Last Messages --------------- 00573_ K-01 Serf cleans the Seismic Survey Station. 00575_ EXIT=FOUND 00577_ K-01 Serf cleans the Seismic Survey Station. 00601_ K-01 Serf collects debris. 00631_ ALERT: Infestation in the mines, dispatching Demolisher response squad. 00640_ C-30 ARC bursts open, deploying its payload. 00640_ D-53 Grenadier unfolds itself. 00642_ U-05 Engineer lays Concrete. 00647_ U-05 Engineer destroyed. 00649_ Assault Rifle destroyed. 00649_ Lgt. Treads destroyed. 00653_ K-01 Serf destroyed. 00654_ The unstable cave ceiling collapses. 00657_ Rocket Launcher destroyed. 00659_ Lgt. Treads destroyed. 00660_ The unstable cave ceiling collapses. 00663_ U-05 Engineer lays Concrete. 00664_ The unstable cave ceiling collapses. 00664_ Crushed by falling debris. Map ----- +----------------------------------------------------+ | ?????????????????????????????????????????????????? | | ?????????????????????????????????????????????????? | | ?????????????????????????????????????????????????? | | ?????????????????????????????????????????????????? | | ?????????????????????????????????????????????????? | | ?????????????????????????????????????????????????? | | ?????????????????????????????????????????????????? | | ?????????????????????????????????????????????????? | | ?????????????????????????????????????????????????? | | ?????????????????????????? ?????????????????????? | | ?????????????????????????? ?????????????????????? | | ?????????????????????????? #????????????????????? | | ???????????????###???????? #????????????????????? | | ??????????????? #???????? #????????????????????? | | ???????????????# ########? #????????????????????? | | ???????????????# ## #????????????????????? | | ???????????????# ## ## #????????????????????? | | ???????????????# ## ## r#????????????????????? | | ???????????????# ## ## ###??????????????????? | | ?????????##????# ## ## ???????????????????? | | ???????? ### ## #????????????????????? | | ???????? # ##???????????????????? | | ??????? #???????????????????? | | ???######= d ##??????????????????? | | ???# % %* d #??????????????????? | | ???# ### @ ##????###????????????? | | ???# #??# # ###? ##???????????? | | ???# #??# ## # # # #???????????? | | #### ################ ###?????????? | | #?????###### ??????? | | < #???????## u ??????? | | """ """ #???????# ## ####???????? | | """ """ #???????## ##### #?????????? | | """ """ #???????## ###??? #????????? | | ######### ##??? ????????? | | """ """ """ #???? ????????? | | """ """ """ #??? ?????????? | | """ """ """ ############# ##?????????????? | | ? #??????????# ## ####??????????????? | | ??#############??????????? ##?????????????????? | | ??????????????????????????#####??????????????????? | | | | | | | | | | | | | | | | | | | +----------------------------------------------------+ Best States ------------- Heat Dissipation 25 Energy Generation 12 Energy Capacity 265 Matter Stores 300 Matter Capacity 300 Sight Range 16 Terrain Scan Density 10 Evasion (%) 50 Recoil Reduction 2 Offensive Hacking 10 Item Schematics ----------------- None Robot Schematics ------------------ None Fabricated ------------ Nothing Repaired ---------- Nothing Alien Tech Used ----------------- None Achievements -------------- None Challenges ------------ None Game ------ Seed ReinforcedRefinerySteel Manual? 0 Play Time 00:08:19 Cumulative 5.6 hours Start 2025.05.25 @ 15:47:23 End 2025.05.25 @ 15:54:17 Sessions 1 Manual Loads 0 Difficulty Rogue Special Mode None Game No. 10 Rogue 10 Adventurer 0 Explorer 0 Win Type - Total 0 Types 0/0/0/0/0/0/0/0/0/0 Lore% 9 Gallery% 10 Achievement% 16 Wizard Run 0 Options --------- Layout 0 ASCII 0 Keyboard 0 Movement Mouse Keybinds 0 Fullscreen 2 Font 24/Smallcaps Map View 76x50 Zoom Use 0% Tactical HUD 1 Map Filters NONE Filters NONE Steam 1 RUN: 35a0af7e-eb83-4dc4-962e-1c2405099901